Workbook

Sheet School Trip
B2: N4 Lifeskills - School Trip Budget Created by Mr.Lafferty@mathsrevision.com
AZ5: =ROUND(RAND()*(12-6)+6,0)*4 -> 40
D8: ="Twins Jack and Victor want to go on a school trip to New York. Their mum says that they can BUT they need to pay the cost themselves." -> Twins Jack and Victor want to go on a school trip to New York. Their mum says that they can BUT they need to pay the cost themselves.
D9: ="The cost of the trip is £"&AZ51&" per pupil and they have "&AZ5&" weeks to save for their trip." -> The cost of the trip is £650 per pupil and they have 40 weeks to save for their trip.
AZ12: =AZ21+ROUND(RAND()*(20-8)+8,0) -> 19.5
D13: ="Q1. Jack and Victor both get £"&TEXT(AZ12,"0.00")&" a week in pocket money. They decide to make up a spreadsheet to see how much they spend each week." -> Q1. Jack and Victor both get £19.50 a week in pocket money. They decide to make up a spreadsheet to see how much they spend each week.
E15: Jack | X15: Victor
E16: Sweets | K16: =CONCATENATE("£",TEXT(AZ16,"0.00")) -> £2.00 | X16: Treats | AD16: =CONCATENATE("£",TEXT(BA16,"0.00")) -> £2.50 | AZ16: =ROUND(RAND()*(8-1)+1,0)*0.5 -> 2 | BA16: =ROUND(RAND()*(8-1)+1,0)*0.5 -> 2.5
E17: Gym membership | K17: =CONCATENATE("£",TEXT(AZ17,"0.00")) -> £3.50 | X17: Cinema | AD17: =CONCATENATE("£",TEXT(BA17,"0.00")) -> £3.50 | AZ17: =ROUND(RAND()*(8-1)+1,0)*0.5 -> 3.5 | BA17: =ROUND(RAND()*(8-6)+6,0)*0.5 -> 3.5
E18: Running Club | K18: =CONCATENATE("£",TEXT(AZ18,"0.00")) -> £1.00 | X18: Orienteering Club | AD18: =CONCATENATE("£",TEXT(BA18,"0.00")) -> £0.50 | AZ18: 1 | BA18: 0.5
E19: Football Game | K19: =CONCATENATE("£",TEXT(AZ19,"0.00")) -> £0.50 | X19: Swimming | AD19: =CONCATENATE("£",TEXT(BA19,"0.00")) -> £3.00 | AZ19: 0.5 | BA19: 3
E20: Golf | K20: =CONCATENATE("£",TEXT(AZ20,"0.00")) -> £2.50 | X20: Basketball Game | AD20: =CONCATENATE("£",TEXT(BA20,"0.00")) -> £1.00 | AZ20: 2.5 | BA20: 1
AZ21: =SUM(AZ16:AZ20) -> 9.5 | BA21: =SUM(BA16:BA20) -> 10.5
D22: (a) Calculate the total each spend each week. | T22: Jack's Total | AD22: Victor's Total | AZ22: =AZ12-AZ21 -> 10 | BA22: =AZ12-BA21 -> 9
D24: ="(b) If they save the same each week how much could they save after "&AZ5&" weeks." -> (b) If they save the same each week how much could they save after 40 weeks. | Y24: Jack's Total | AI24: Victor's Total | AY24: J | AZ24: =AZ22*AZ5 -> 400 | BA24: =BA22*AZ5 -> 360 | BB24: V
AZ27: =ROUND(AZ5/ROUND(RAND()*(2-1)+1,1),0) -> 31
D28: ="Q2. With "&AZ27&" weeks to go Jack decides to get a job delivering newspapers to help to pay for the trip." -> Q2. With 31 weeks to go Jack decides to get a job delivering newspapers to help to pay for the trip. | AZ28: =ROUND(RAND()*(2-1)+1,1)*100 -> 130 | BB28: =ROUND(RAND()*(1-0)+0,0) -> 0
E29: ="Jack delivers "&AZ28&" papers a week. He gets £"&TEXT(AZ29,"0.00")&" per paper. How much will he earn towards his trip ?" -> Jack delivers 130 papers a week. He gets £0.07 per paper. How much will he earn towards his trip ? | AZ29: =ROUND(RAND()*(0.1-0.04)+0.04,2) -> 0.07
AY30: J | AZ30: =AZ28*AZ29*AZ27 -> 282.1
AZ33: =ROUND(RAND()*(6-1)+1,0) -> 1
D34: ="Q3. With "&AZ33&" weeks to go Victor decides to wash cars every weekend." -> Q3. With 1 weeks to go Victor decides to wash cars every weekend. | AB34: Wash Only | AH34: Wash + Polish | AZ34: =ROUND(RAND()*(16-8)+8,0) -> 14 | BA34: wash | BB34: =ROUND(RAND()*(1.8-1.2)+1.2,1) -> 1.4
AB35: =CONCATENATE("£",TEXT(BB34,"0.00")) -> £1.40 | AH35: =CONCATENATE("£",TEXT(BB35,"0.00")) -> £2.60 | AZ35: =ROUND(RAND()*(15-4)+4,0) -> 10 | BA35: polish | BB35: =ROUND(RAND()*(3.2-2.5)+2.5,1) -> 2.6
E36: ="On average each week he washes "&AZ34&" cars and washes + polishes "&AZ35&" cars." -> On average each week he washes 14 cars and washes + polishes 10 cars. | AY36: V | AZ36: =(AZ34*BB34+AZ35*BB35)*AZ33 -> 45.6
E38: ="How much does he earn towards his trip ?" -> How much does he earn towards his trip ? | AB38: 282.1
AZ40: Jack | BA40: Victor
D41: ="Jack and Victor decide to arrange a car boot sale to sell their old stuff they no longer need." -> Jack and Victor decide to arrange a car boot sale to sell their old stuff they no longer need. | AZ41: =AZ30+AZ24 -> 682.1 | BA41: =AZ36+BA24 -> 405.6
D43: ="Jack earns £"&AZ43&" and Victor earns £"&AZ44&"." -> Jack earns £65 and Victor earns £250. | AY43: J | AZ43: =ROUND(RAND()*(20-10)+10,0)*5 -> 65
AY44: V | AZ44: =ROUND(RAND()*(50-21)+21,0)*5 -> 250
AY45: J | AZ45: =AZ41+AZ43 -> 747.1
D46: ="Jack has his birthday before the trip and gets £"&AZ47&"" -> Jack has his birthday before the trip and gets £115 | AY46: V | AZ46: =BA41+AZ44 -> 655.6
AZ47: =ROUND(RAND()*(40-21)+21,0)*5 -> 115
AY48: J | AZ48: =AZ45+AZ47 -> 862.1
D49: ="Who has made enough money to go on the trip ?" -> Who has made enough money to go on the trip ? | AB49: (Jack or Victor or Both) | AY49: V | AZ49: =AZ46 -> 655.6
AZ50: =ROUND(RAND()*(2-1)+1,0) -> 1 | BA50: =IF(AZ48<AZ49,AZ48,AZ49) -> 655.6 | BB50: =IF(AZ48>AZ49,AZ48,AZ49) -> 862.1
AZ51: =IF(AZ50=1,ROUNDDOWN(BA50,-1),IF(AZ50=2,ROUNDDOWN(BB50,-1),0)) -> 650 | BA51: =IF(AZ49=BA50,"Victor","Jack") -> Victor | BB51: =IF(AZ49=BB50,"Victor","Jack") -> Jack
BA52: =IF(BA50>=AZ51,1,0) -> 1 | BB52: =IF(BB50>=AZ51,1,0) -> 1
BA53: =CONCATENATE(BA52,BB52) -> 11
AZ54: =IF(BA53="11","Both",BB51) -> Both
